lending/lending_fUSD_20240128
["ID","MTS","AMOUNT","RATE_DAILY","PERIOD"]
[312886894,1706410232776,-17966.69591156,0.00022998,2]
[312886895,1706410232790,-142288.60679653,0.00022998,2]
[312886896,1706410232802,-2942.64067289,0.00022998,2]
[312886897,1706410232813,-1518.07566965,0.00022998,2]
[312886898,1706410232825,-5475.34120222,0.00022999,2]
[312886899,1706410232836,-317.09561274,0.00022999,2]
[312886900,1706410232848,-1000.0,0.00022999,2]
[312886901,1706410232859,-307.4052764,0.00022999,2]
[312886902,1706410232870,-573346.53510039,0.00023,2]
[312886903,1706410232894,-3921.37993094,0.00023,2]
[312886904,1706410232905,-96.72006906,0.00023049,2]
[312886905,1706410232920,-1181.28938509,0.00023049,2]
[312886906,1706410232931,-152.4,0.00023061,2]
[312886907,1706410232942,-3659.98935653,0.0002313,2]
[312886908,1706410232953,-152.4,0.0002313,2]
[312886909,1706410232964,-152.4,0.000232,2]
[312886910,1706410232975,-152.4,0.00023269,2]
[312886911,1706410232986,-152.4,0.00023339,2]
[312886912,1706410232998,-152.4,0.00023409,2]
[312886913,1706410233009,-152.4,0.00023478,2]
[312886914,1706410233020,-152.4,0.00023548,2]
[312886915,1706410233032,-152.4,0.00023617,2]
[312886916,1706410233043,-152.4,0.00023687,2]
[312886917,1706410233054,-152.4,0.00023757,2]
[312886918,1706410233066,-508.45,0.00023776,2]
[312886919,1706410233077,-152.4,0.00023826,2]
[312886920,1706410233088,-152.4,0.00023896,2]
[312886921,1706410233100,-500.3911992,0.00023999,2]
[312886922,1706410233112,-202.33998511,0.00024,2]
[312886923,1706410233123,-155.96,0.00024079,2]
[312886924,1706410233134,-299.999999,0.000241,2]
[312886925,1706410233146,-176.39,0.00024297,2]
[312886926,1706410233157,-167.72,0.00024297,2]
[312886927,1706410233169,-162.81511466,0.000243,2]
[312886928,1706410233181,-1124.44,0.00024384,2]
[312886929,1706410233193,-325.61275484,0.0002442,2]
[312886930,1706410233205,-491.97,0.0002463,2]
[312886931,1706410233214,-250.0,0.00024658,2]
[312886932,1706410233223,-488.0,0.00024671,2]
[312886933,1706410233232,-640.0,0.00024698,2]
[312886934,1706410233390,-203.36641651,0.00025,2]
[312886935,1706410233407,-305.49944644,0.00025,2]
[312886936,1706410233417,-938.76124685,0.00025,2]
[312886937,1706410233426,-1255.56488918,0.00025,2]
[312886938,1706410233441,-168.42096943,0.00025,2]
[312886939,1706410233450,-159.84690031,0.00025,2]
[312886940,1706410233459,-1594.0382932,0.00025,2]
[312886941,1706410233468,-550.0,0.00025,3]
[312886942,1706410233478,-154.33670447,0.0002509,2]
[312886943,1706410233487,-1325.2607605,0.000251,2]
[312886944,1706410233496,-155.96,0.00025356,2]
[312886945,1706410233507,-153.15,0.00025372,2]
[312886946,1706410233516,-508.45,0.0002542,2]
[312886947,1706410233525,-176.39,0.00025633,2]
[312886948,1706410233534,-169.44,0.00025729,2]
[312886949,1706410233543,-2048.9478083,0.00025774,2]
[312886950,1706410233553,-150.0,0.00026079,2]
[312886951,1706410233562,-397.03785297,0.00026625,2]
[312886952,1706410233571,-155.96,0.00026633,2]
[312886953,1706410233580,-1336.0,0.000269,2]
[312886954,1706410233589,-5313.0,0.000269,2]
[312886955,1706410233599,-176.39,0.0002697,2]
[312886956,1706410233607,-600.0,0.00027,3]
[312886957,1706410233617,-508.45,0.00027064,2]
[312886958,1706410233627,-547.2970812,0.00027327,3]
[312886959,1706410233636,-929.83427944,0.00027404,2]
[312886960,1706410233645,-488.0,0.00027412,2]
[312886961,1706410233654,-640.0,0.00027442,2]
[312886962,1706410233663,-178.23,0.00027671,2]
[312886963,1706410233672,-757.0,0.0002769,5]
[312886964,1706410233681,-155.96,0.00027911,2]
[312886965,1706410233691,-176.39,0.00028307,2]
[312886966,1706410233700,-2048.9478083,0.00028586,2]
[312886967,1706410233709,-508.45,0.00028707,2]
[312886968,1706410233718,-650.0,0.00029,3]
[312886969,1706410233729,-1073.7,0.00029009,2]
[312886970,1706410233739,-19180.42,0.00029009,2]
[312886971,1706410233748,-409.34,0.00029009,2]
[312886972,1706410233757,-155.96,0.00029188,2]
[312886973,1706410233766,-210.0,0.00029515,2]
[312886974,1706410233775,-247.46210254,0.00029698,2]
[312886975,1706410233784,-209.0,0.000299,2]
[312886976,1706410233793,-160.46853945,0.0003,4]
[312886977,1706410233803,-155.0,0.0003,2]
[312886978,1706410233812,-461.79276746,0.0003,4]
[312886979,1706410233821,-22583.23807135,0.0003,4]
[312886980,1706410233830,-488.0,0.00030153,2]
[312886981,1706410233839,-640.0,0.00030186,2]
[312886982,1706410233848,-2000.0,0.000302,2]
[312886983,1706410233857,-200.0,0.000302,2]
[312886984,1706410233866,-157.28962954,0.00030233,2]
[312886985,1706410233875,-397.03785297,0.00030351,2]
[312886986,1706410233884,-508.45,0.00030351,2]
[312886987,1706410233893,-2000.0,0.00030502,2]
[312886988,1706410233902,-153.15,0.00030748,2]
[312886989,1706410233911,-2000.0,0.00030807,2]
[312886990,1706410233920,-1428.10392785,0.00031115,2]
[312886991,1706410233929,-2048.9478083,0.00031399,3]
[312886992,1706410233938,-1777.33526221,0.000317,2]
[312886993,1706410233947,-547.2970812,0.00031756,5]
[312886994,1706410233956,-225050.628942,0.000318,3]
[312886995,1706410233965,-929.83427944,0.000319,4]
[312886996,1706410233974,-437.66659401,0.00032,2]
[312886997,1706410233983,-210.19,0.00032877,15]
[312886998,1706410233992,-488.0,0.00032894,2]
[312886999,1706410234001,-640.0,0.0003293,2]
[312887000,1706410234010,-608.73629426,0.00033,4]
[312887001,1706410234019,-150.0,0.000333,2]
[312887002,1706410234029,-155.72,0.000335,2]
[312887003,1706410234037,-155.72,0.000335,2]
[312887004,1706410234047,-155.72,0.000335,2]
[312887005,1706410234055,-155.72,0.000335,2]
[312887006,1706410234064,-155.72,0.000335,2]
[312887007,1706410234074,-397.03785297,0.00034078,2]
[312887008,1706410234083,-2048.9478083,0.00034212,6]
[312887009,1706410234093,-1277.32586502,0.000349,14]
[312887010,1706410234102,-536.1799074,0.000349,2]
[312887011,1706410234112,-536.17990737,0.000349,2]
[312887012,1706410234121,-536.17990737,0.000349,2]
[312887013,1706410234130,-150.08306563,0.000349,2]
[312887014,1706410234140,-357.8224454,0.000349,2]
[312887015,1706410234149,-243979.05576328,0.00035,2]
[312887016,1706410234162,-85321.49737647,0.00035,2]
[312887017,1706410234171,-5000.0,0.00035,4]
[312887018,1706410234180,-1124.44,0.00035616,2]
[312887019,1706410234190,-1490.0,0.000359,12]
[312887020,1706410234199,-286.52,0.000359,7]
[312887021,1706410234209,-421.55,0.000359,7]
[312887022,1706410234218,-534.6,0.000359,7]
[312887023,1706410234227,-1814.94224108,0.00036002,4]
[312887024,1706410234237,-153.15,0.00036125,2]
[312887025,1706410234246,-547.2970812,0.00036185,7]
[312887026,1706410234255,-186.15992773,0.0003649,10]
[312887027,1706410234264,-150.0,0.000369,2]
[312887028,1706410234273,-150.0,0.000369,2]
[312887029,1706410234282,-150.0,0.000369,2]
[312887030,1706410234291,-150.0,0.000369,2]
[312887031,1706410234300,-150.0,0.000369,2]
[312887032,1706410234310,-150.0,0.000369,2]
[312887033,1706410234319,-150.0,0.000369,2]
[312887034,1706410234327,-150.0,0.000369,2]
[312887035,1706410234336,-150.0,0.000369,2]
[312887036,1706410234346,-150.0,0.000369,2]
[312887037,1706410234354,-150.0,0.000369,2]
[312887038,1706410234364,-150.0,0.000369,2]
[312887039,1706410234373,-150.0,0.000369,2]
[312887040,1706410234382,-150.0,0.000369,2]
[312887041,1706410234391,-150.0,0.000369,2]
[312887042,1706410234400,-150.0,0.000369,2]
[312887043,1706410234409,-150.0,0.000369,2]
[312887044,1706410234419,-150.0,0.000369,2]
[312887045,1706410234428,-150.0,0.000369,2]
[312887046,1706410234441,-151.38323677,0.000369,2]
[312887047,1706410234450,-251.45572562,0.000369,2]
[312887048,1706410234459,-176.65,0.000369,2]
[312887049,1706410234469,-2048.9478083,0.00037024,10]
[312887050,1706410234478,-210.0,0.00037136,16]
[312887051,1706410234487,-150.01,0.00037368,2]
[312887052,1706410234496,-3303.45578245,0.00037368,2]
[312887053,1706410234506,-184.98086045,0.00037448,2]
[312887054,1706410234516,-1777.32,0.000376,3]
[312887055,1706410234526,-157.28962954,0.00037796,2]
[312887056,1706410234536,-397.03785297,0.00037804,2]
[312887057,1706410234545,-55453.72661955,0.0003789,4]
[312887058,1706410234556,-23736.57730222,0.0003789,4]
[312887059,1706410234568,-7924.14223101,0.0003789,4]
[312887060,1706410234578,-1186.69011417,0.0003789,4]
[312887061,1706410234590,-269.42731393,0.0003789,4]
[312887064,1706410239732,-150.01,0.00037368,2]
[312887065,1706410239742,-3303.45578245,0.00037368,2]
[312887066,1706410239751,-31677.77045552,0.0003789,4]
[312887067,1706410239762,-4178.21223566,0.0003789,4]
[312887068,1706410240025,-261.27185226,0.0003789,4]
[312887069,1706410240037,-473.3383626,0.0003789,4]
[312887070,1706410240056,-63606.01253809,0.0003789,4]
[312887071,1706410240067,-4723.37346589,0.0003789,4]
[312887072,1706410240806,-522.051,0.000365,2]
[312887073,1706410240860,-477.949,0.000365,2]
[312887074,1706410240870,-4460.4575091,0.0003789,4]
[312887075,1706410240879,-192.30459682,0.00037896,2]
[312887076,1706410240889,-910.38491138,0.00037898,4]
[312887077,1706410240898,-3556.90429412,0.00037898,4]
[312887078,1706410240907,-884.95572403,0.00037898,2]
[312887079,1706410240916,-8885.03169617,0.00037899,4]
[312887080,1706410240926,-690.0,0.000379,5]
[312887081,1706410240935,-802.0,0.000379,2]
[312887082,1706410240949,-242.16914487,0.000379,4]
[312887083,1706410240959,-200.0,0.000379,2]
[312887084,1706410240969,-500.0,0.000379,2]
[312887085,1706410241123,-500.0,0.000379,2]
[312887086,1706410241133,-300.0,0.000379,2]
[312887087,1706410241142,-500.0,0.000379,2]
[312887088,1706410241152,-2798.31315674,0.000379,2]
[312887089,1706410241164,-2026.86299351,0.000379,2]
[312887090,1706410241175,-421.812684,0.000379,2]
[312887092,1706410243381,-199.79007072,0.00037803,2]
[312887093,1706410243391,-1881.99192928,0.000379,2]
[312887094,1706410243489,-2596.26077757,0.00037803,2]
[312887095,1706410243545,-707.19500488,0.00037803,2]
[312887096,1706410243555,-1351.04692181,0.000379,2]
[312887097,1706410243599,-4994.6294913,0.000379,2]
[312887098,1706410244556,-689.85658035,0.000379,2]
[312887099,1706410244566,-161.476822,0.000379,20]
[312887100,1706410244575,-5148.6662644,0.000379,3]
[312887106,1706410246305,-3658.87146499,0.000379,3]
[312887107,1706410246412,-412.61029583,0.000379,3]
[312887108,1706410246424,-4067.74069963,0.000379,3]
[312887109,1706410246468,-253.77352739,0.000379,3]
[312887110,1706410246577,-663.06080362,0.000379,3]
[312887111,1706410246592,-1288.17523618,0.000379,3]
[312887129,1706410313393,7504.75046704,0.00021689,2]
[312887130,1706410355938,220.99792444,0.0002211,2]
[312887166,1706411074349,-190.1168,0.000228,2]
[312887167,1706411074375,-153.12540876,0.000228,2]
[312887168,1706411229184,-155.10508629,0.00022898,2]
[312887169,1706411250097,-155.36145358,0.00022898,2]
[312887170,1706411262106,157.21646418,0.00021982,2]
[312887193,1706411431437,-150.0,0.00022897,2]
[312887194,1706411431447,-689.53346013,0.00022898,2]
[312887195,1706411431456,-696.06400292,0.00022898,2]
[312887196,1706411431596,-2652.38806776,0.00022898,2]
[312887197,1706411431606,-19094.87154963,0.00022898,2]
[312887198,1706411431614,-1000.0,0.00022899,2]
[312887199,1706411431624,-38110.92767313,0.000229,2]
[312887200,1706411431703,-2867.05041199,0.000229,2]
[312887207,1706411437700,-368.46091741,0.000229,2]
[312887208,1706411437712,-376.56700672,0.000229,2]
[312887209,1706411437772,-27848.87569075,0.000229,2]
[312887210,1706411437782,-485.437,0.000229,2]
[312887211,1706411437792,-1385.52420827,0.000229,2]
[312887212,1706411437806,-15866.9329,0.000229,2]
[312887213,1706411437817,-8211.12690814,0.000229,2]
[312887214,1706411437827,-659.97759874,0.000229,2]
[312887215,1706411437837,-238.54829694,0.000229,2]
[312887216,1706411437847,-273.6485406,0.000229,2]
[312887217,1706411437857,-1186.95461338,0.000229,2]
[312887218,1706411437867,-8000.0,0.000229,2]
[312887219,1706411437877,-153.03976705,0.000229,2]
[312887220,1706411437886,-4259876.23746954,0.00023,2]
[312887221,1706411437899,-63606.01253809,0.00023,2]
[312887222,1706411437911,-17559.96923057,0.00023,2]
[312887484,1706411440596,-475.31060005,0.00023,2]
[312887487,1706411440609,-3555.06684714,0.00023,2]
[312887492,1706411440652,-6119.44966833,0.00023,2]
[312887494,1706411440665,-312.52609998,0.00023,2]
[312887496,1706411440677,-11976.0,0.00023,2]
[312887501,1706411440707,-59313.24946623,0.00023,2]
[312887687,1706411442504,-465.15169898,0.00023,2]
[312887694,1706411442557,-1024.93389214,0.00023,2]
[312887707,1706411442665,-304.71400008,0.00023,2]
[312887731,1706411442881,-1413.01804533,0.00023,2]
[312887734,1706411442893,-4242.6357063,0.00023,2]
[312887736,1706411442905,-1886.9656,0.00023,2]
[312887738,1706411442916,-1456.20448539,0.00023,2]
[312887771,1706411445509,-782.52846603,0.00022999,2]
[312887772,1706411445521,-217.47153397,0.00022999,2]
[312887773,1706411445530,-259.01961526,0.00023,2]
[312887774,1706411445542,-348.37148933,0.00023,2]
[312887775,1706411445723,-42570.92410681,0.00023,2]
[312887776,1706411445781,-816.15934275,0.00023,2]
[312887777,1706411445793,-1003.23682081,0.00023,2]
[312887778,1706411445839,-512.67,0.00023,2]
[312887779,1706411471298,353.16,0.00022,2]
[312887783,1706411639844,2404.0,0.0002277,2]
[312887788,1706411938601,47.38132706,0.000228,2]
[312887789,1706411970292,299.99,0.00025,7]
[312887790,1706412359220,-106.46318499,0.000228,2]
[312887791,1706412359367,-943.02806725,0.00022898,2]
[312887792,1706412359386,-1000.0,0.00022899,2]
[312887793,1706412359404,-300.0,0.00022899,2]
[312887794,1706412359424,-150.0,0.00022899,2]
[312887795,1706412359443,-29059.12112156,0.000229,2]
[312887796,1706412432111,-150.0,0.00022899,2]
[312887797,1706412432132,-25858.46148934,0.000229,2]
[312887798,1706412451103,-29740.8436891,0.000229,2]
[312887799,1706412451123,-365.7836,0.000229,2]
[312887800,1706412451142,-9291.5958,0.000229,2]
[312887801,1706412451164,-153.84451204,0.000229,2]
[312887802,1706412451184,-151.68113173,0.000229,2]
[312887803,1706412451204,-1270.06385759,0.000229,2]
[312887804,1706412451226,-396.93937095,0.000229,2]
[312887805,1706412451365,-883.76655362,0.000229,2]
[312887806,1706412451384,-150.08306563,0.000229,2]
[312887807,1706412451403,-801.62768654,0.00022998,2]
[312887808,1706412451422,-946.60101861,0.00022999,2]
[312887809,1706412451441,-14200.34851254,0.00022999,2]
[312887810,1706412451460,-204.84671022,0.00022999,2]
[312887811,1706412451479,-371.01115216,0.00022999,2]
[312887812,1706412451498,-294.31141184,0.00022999,2]
[312887813,1706412451518,-10402.94711209,0.00022999,2]
[312887814,1706412451537,-1000.0,0.00022999,2]
[312887815,1706412451558,-23870.14209799,0.00023,2]
[312887827,1706412631609,-347.32194959,0.000229,2]
[312887828,1706412631619,-214.87385014,0.000229,2]
[312887829,1706412631628,-25.17397533,0.000229,2]
[312887830,1706412631664,-905.1169246,0.000229,2]
[312887831,1706412631676,-546.54532813,0.000229,2]
[312887832,1706412631688,-750.18161684,0.000229,2]
[312887833,1706412631720,-827.97272973,0.000229,2]
[312887834,1706412631731,-1191.47070633,0.000229,2]
[312887835,1706412631775,-1227.62332446,0.000229,2]
[312887836,1706412631784,-5829.9954759,0.00023,2]
[312887837,1706412631796,-4448.13567168,0.00023,2]
[312887838,1706412631807,-1026.8579553,0.00023,2]
[312887844,1706412631989,-791.24822385,0.00023,2]
[312887846,1706412632008,-20844.90484149,0.00023,2]
[312887847,1706412632026,-307.51494231,0.00023,2]
[312887848,1706412632038,-44682.87517428,0.00023,2]
[312887849,1706412632049,-456.31690773,0.00023,2]
[312887850,1706412632061,-4482.96214092,0.00023,2]
[312887851,1706412632072,-4168.71995178,0.00023,2]
[312887852,1706412632083,-1426.73096217,0.00023,2]
[312887853,1706412632102,-300.0,0.00023,2]
[312887854,1706412632113,-356.31399137,0.00023,2]
[312887855,1706412632125,-3747.09115664,0.00023,2]
[312887856,1706412632148,-518.79841674,0.00023,2]
[312887869,1706412637658,-2257.52372064,0.00023,2]
[312887870,1706412637670,-358.67341576,0.00023,2]
[312887871,1706412637682,-1408594.8366949,0.00023,2]
[312887872,1706412637716,-13496.77427944,0.00023,2]
[312887873,1706412637729,-950.26079625,0.00023,2]
[312887874,1706412637742,-19817.88482359,0.00023,2]
[312887875,1706412637771,-28800.08335906,0.00023,2]
[312887876,1706412637878,-926.63689892,0.00023,2]
[312887878,1706412637945,-45868.39084573,0.00023,2]
[312887879,1706412637957,-635.96349285,0.00023,2]
[312887880,1706412637969,-63606.01253809,0.00023,2]
[312887881,1706412637982,-3627.95124371,0.00023,2]
[312888023,1706412640156,-312.14320097,0.00023,2]
[312888024,1706412640167,-2719.65690231,0.00023,2]
[312888025,1706412640221,-528.78808296,0.00023,2]
[312888026,1706412640233,-541.05532265,0.00023,2]
[312888027,1706412640246,-149975.43837782,0.00023,2]
[312888028,1706412640257,-1486.40484852,0.00023,2]
[312888029,1706412640268,-606.65494577,0.00023,2]
[312888030,1706412640279,-759.92272055,0.00023,2]
[312888031,1706412640290,-507.76928861,0.00023,2]
[312888032,1706412640301,-601.05792827,0.00023,2]
[312888033,1706412640313,-21357.63,0.00023,2]
[312888034,1706412640324,-1612.60638186,0.00023,2]
[312888035,1706412640335,-320.7376266,0.00023,2]
[312888036,1706412640351,-558.63551434,0.00023,2]
[312888037,1706412640382,-36816.4684082,0.00023,2]
[312888038,1706412640393,-13626.93094215,0.00023,2]
[312888039,1706412640404,-21170.49640106,0.00023,2]
[312888040,1706412640490,-321.88345115,0.00023,2]
[312888041,1706412641076,-9245.30500987,0.00023,2]
[312888042,1706412641124,-33835.51823146,0.00023,2]
[312888068,1706412642707,-815.36240105,0.00023,2]
[312888069,1706412642718,-1449.54671138,0.00023,2]
[312888070,1706412642730,-3948.13570753,0.00023,2]
[312888071,1706412642741,-352.73851809,0.00023,2]
[312888072,1706412642753,-21011.99395085,0.00023,2]
[312888073,1706412642773,-524.28678313,0.00023,2]
[312888074,1706412642824,-262.45190531,0.00023,2]
[312888075,1706412642835,-696.05985471,0.00023,2]
[312888076,1706412642850,-48957.50984012,0.00023,2]
[312888077,1706412642859,-28269.97242882,0.00023,2]
[312888078,1706412642870,-21385.11819945,0.00023,2]
[312888079,1706412642881,-293.33957425,0.00023,2]
[312888080,1706412642896,-685.75311015,0.00023,2]
[312888081,1706412642909,-723.05702901,0.00023,2]
[312888082,1706412642920,-1771.22584061,0.00023,2]
[312888083,1706412642932,-1321.86465,0.00023,2]
[312888084,1706412642943,-3337.82693116,0.00023,2]
[312888085,1706412642961,-1515.01903168,0.00023,2]
[312888086,1706412642973,-1143619.26417373,0.00023,2]
[312888087,1706412642982,-180.11490934,0.00023031,2]
[312888088,1706412642991,-201.54460435,0.00024,2]
[312888089,1706412643000,-300.72698765,0.000241,2]
[312888090,1706412643010,-638.16769869,0.00024784,2]
[312888091,1706412643019,-305.07253524,0.00025,2]
[312888092,1706412643029,-214.46498886,0.00025,2]
[312888093,1706412643038,-167.64878724,0.00025,2]
[312888094,1706412643047,-202.3461783,0.00025,2]
[312888095,1706412643056,-1270.06385755,0.00025655,2]
[312888096,1706412643066,-162.63,0.000259,2]
[312888097,1706412643074,-210.22,0.00026236,2]
[312888098,1706412643083,-499.99,0.00026236,2]
[312888099,1706412643093,-687.99,0.00026338,2]
[312888101,1706412643102,-159.80759569,0.00026338,2]
[312888102,1706412643111,-150.0,0.00026338,2]
[312888104,1706412643238,-5459.0,0.000269,2]
[312888105,1706412643248,-347.32194958,0.00027229,3]
[312888106,1706412643257,-63606.0,0.00027397,4]
[312888107,1706412643266,-200.0,0.00027469,2]
[312888108,1706412643275,-250.0,0.00027516,2]
[312888109,1706412643284,-2000.0,0.00027549,2]
[312888110,1706412643293,-150.0,0.00027577,2]
[312888111,1706412643303,-250.0,0.00027634,2]
[312888112,1706412643312,-630.05,0.00027637,2]
[312888113,1706412643321,-387.04,0.00027664,2]
[312888114,1706412643330,-181.29,0.0002769,2]
[312888115,1706412643339,-150.0,0.000277,2]
[312888116,1706412643349,-250.0,0.00027701,2]
[312888117,1706412643358,-8648.3,0.00027708,2]
[312888118,1706412643367,-150.0,0.00027763,2]
[312888119,1706412643375,-378.97,0.00027825,2]
[312888120,1706412643384,-612.0,0.00027867,5]
[312888121,1706412643393,-170.77,0.00027917,2]
[312888122,1706412643402,-1000.0,0.00028154,2]
[312888123,1706412643411,-1270.06385755,0.00028409,2]
[312888124,1706412643420,-23850.0,0.00028416,2]
[312888125,1706412643430,-169.44,0.00028967,2]
[312888126,1706412643439,-159.21,0.00029268,2]
[312888127,1706412643449,-387.04,0.00029308,2]
[312888128,1706412643458,-155.0,0.0003,2]
[312888129,1706412643467,-2929.3,0.0003,2]
[312888130,1706412643476,-749.62,0.00030134,2]
[312888131,1706412643485,-679.06540673,0.00030399,2]
[312888132,1706412643494,-156.88,0.00030545,2]
[312888133,1706412643503,-387.04,0.00030952,2]
[312888134,1706412643512,-1270.06385755,0.00031164,2]
[312888135,1706412643521,-156.88,0.00031341,2]
[312888136,1706412643531,-347.32194958,0.00031557,5]
[312888137,1706412643540,-1000.0,0.00031673,2]
[312888138,1706412643549,-68804.0787218,0.000318,3]
[312888139,1706412643558,-346.0,0.000319,2]
[312888140,1706412643567,-156.88,0.00032137,2]
[312888141,1706412643576,-166.64,0.00032417,2]
[312888142,1706412643585,-387.04,0.00032595,2]
[312888143,1706412643594,-162.63,0.00033069,2]
[312888144,1706412643603,-1270.06385755,0.00033918,6]
[312888145,1706412643612,-387.04,0.00034239,2]
[312888146,1706412643621,-155.74,0.000345,2]
[312888147,1706412643630,-155.74,0.000345,2]
[312888148,1706412643639,-155.74,0.000345,2]
[312888149,1706412643649,-155.74,0.000345,2]
[312888150,1706412643658,-536.17990737,0.000349,2]
[312888151,1706412643667,-536.17990737,0.000349,2]
[312888152,1706412643676,-192.31421206,0.00035,2]
[312888153,1706412643685,-11331.89429587,0.00035,2]
[312888154,1706412643694,-1000.0,0.00035192,2]
[312888155,1706412643705,-211.0,0.00035378,2]
[312888156,1706412643716,-387.04,0.00035883,2]
[312888157,1706412643724,-347.32194958,0.00035886,7]
[312888158,1706412643734,-1490.0,0.000359,12]
[312888159,1706412643746,-217.05,0.000359,7]
[312888160,1706412643755,-410.98,0.000359,7]
[312888161,1706412643767,-2500.0,0.00036,3]
[312888162,1706412643776,-1270.06385755,0.00036673,9]
[312888163,1706412643786,-500.0,0.000369,2]
[312888164,1706412643796,-500.0,0.000369,2]
[312888165,1706412643807,-500.0,0.000369,2]
[312888166,1706412643817,-500.0,0.000369,2]
[312888167,1706412643826,-500.0,0.000369,2]
[312888168,1706412643835,-500.0,0.000369,2]
[312888169,1706412643845,-500.0,0.000369,2]
[312888170,1706412643854,-500.0,0.000369,2]
[312888171,1706412643864,-500.0,0.000369,2]
[312888172,1706412643874,-500.0,0.000369,2]
[312888173,1706412643884,-500.0,0.000369,2]
[312888174,1706412643894,-500.0,0.000369,2]
[312888175,1706412643903,-500.0,0.000369,2]
[312888176,1706412643913,-500.0,0.000369,2]
[312888177,1706412643923,-500.0,0.000369,2]
[312888178,1706412643934,-500.0,0.000369,2]
[312888179,1706412643944,-500.0,0.000369,2]
[312888180,1706412643954,-500.0,0.000369,2]
[312888181,1706412643963,-500.0,0.000369,2]
[312888182,1706412643973,-500.0,0.000369,2]
[312888183,1706412643982,-500.0,0.000369,2]
[312888184,1706412643991,-872.4,0.00037356,2]
[312888185,1706412644001,-500.616153,0.00037519,4]
[312888186,1706412644010,-169.77,0.000376,7]
[312888187,1706412644019,-166.64,0.00037768,2]
[312888188,1706412644029,-1068.63,0.000378,2]
[312888189,1706412644038,-214.87385013,0.00037834,2]
[312888190,1706412644047,-5474.08460542,0.00037834,2]
[312888191,1706412644057,-12848.6508363,0.00037894,2]
[312888192,1706412644066,-3532.8940171,0.00037894,2]
[312888193,1706412644075,-164813.9334788,0.00037894,2]
[312888194,1706412644085,-1586.52836602,0.00037898,2]
[312888195,1706412644094,-935.13066472,0.00037898,2]
[312888196,1706412644104,-5485.82091753,0.00037898,4]
[312888197,1706412644113,-5933.09478866,0.00037898,4]
[312888198,1706412644122,-163.2539854,0.00037898,2]
[312888199,1706412644132,-204.52799996,0.00037899,4]
[312888200,1706412644143,-681.73232534,0.00037899,4]
[312888201,1706412644155,-251574.41371314,0.00037899,2]
[312888202,1706412644164,-3303.45578245,0.00037899,2]
[312888203,1706412644174,-500.0,0.000379,2]
[312888204,1706412644184,-150.0,0.000379,20]
[312888205,1706412644194,-3000.0,0.000379,20]
[312888206,1706412644203,-165554.6144726,0.000379,3]
[312888207,1706412644224,-2499.40594227,0.000379,3]
[312888217,1706412645762,-570.33388121,0.000379,3]
[312888218,1706412645775,-47207.99999998,0.000379,3]
[312888219,1706412645787,-407.9534021,0.000379,3]
[312888220,1706412645821,-18114.94023014,0.000379,3]
[312888221,1706412645834,-2362.80717664,0.000379,3]
[312888222,1706412645845,-645.88554948,0.000379,3]
[312888223,1706412645860,-253649.06472923,0.000379,3]
[312888224,1706412645938,-686.59631571,0.000379,3]
[312888225,1706412645949,-2980.34582538,0.000379,3]
[312888226,1706412645998,-388.95084273,0.000379,3]
[312888227,1706412646009,-2801.02534207,0.000379,3]
[312888228,1706412646106,-950.02514043,0.000379,3]
[312888250,1706413747163,79030.0,0.0003025,90]
[312888255,1706413831798,-201.54460435,0.00024899,2]